bitfinex-derivatives/quotes_BTCF0:USTF0_20240825
["timestamp","ask_amount","ask_price","bid_price","bid_amount"]
[1724557337060,0.096009,64065.0,64064.0,0.00212395]
[1724557337453,0.096009,64065.0,64064.0,0.06452286]
[1724557338051,0.096009,64065.0,64064.0,0.09212395]
[1724557339954,0.096009,64065.0,64064.0,0.17013395]
[1724557341364,0.018,64065.0,64064.0,0.17013395]
[1724557343674,0.018,64065.0,64064.0,0.53093395]
[1724557347966,0.018,64065.0,64064.0,0.17013395]
[1724557348156,0.018,64065.0,64064.0,0.53093395]
[1724557350356,0.096009,64065.0,64064.0,0.53093395]
[1724557351565,0.096009,64065.0,64064.0,0.44093395]
[1724557352692,0.018,64065.0,64064.0,0.44093395]
[1724557352858,0.096009,64065.0,64064.0,0.44093395]
[1724557355873,0.096009,64065.0,64064.0,0.08013395]
[1724557356070,0.096009,64065.0,64064.0,0.44093395]
[1724557358773,0.096009,64065.0,64064.0,0.08013395]
[1724557358996,0.096009,64065.0,64064.0,0.44093395]
[1724557359868,0.096009,64065.0,64064.0,0.08013395]
[1724557360070,0.096009,64065.0,64064.0,0.44093395]
[1724557360679,0.174018,64065.0,64064.0,0.36292395]
[1724557360869,0.31304178,64065.0,64064.0,0.36292395]
[1724557361174,0.2041508,64065.0,64064.0,0.36292395]
[1724557361966,0.31303017,64065.0,64064.0,0.36292395]
[1724557363275,0.242351,64065.0,64064.0,0.36292395]
[1724557363868,0.174018,64065.0,64064.0,0.36292395]
[1724557365570,0.096009,64065.0,64064.0,0.36292395]
[1724557370482,0.096009,64065.0,64064.0,0.00212395]
[1724557370684,0.096009,64065.0,64064.0,0.36292395]
[1724557373079,0.096009,64065.0,64064.0,0.00212395]
[1724557373278,0.096009,64065.0,64064.0,0.36292395]
[1724557373673,0.096009,64065.0,64064.0,0.00212395]
[1724557373879,0.096009,64065.0,64064.0,0.36292395]
[1724557374580,0.096009,64065.0,64064.0,0.00212395]
[1724557374780,0.096009,64065.0,64064.0,0.36292395]
[1724557379683,0.096009,64065.0,64064.0,0.00212395]
[1724557379877,0.096009,64065.0,64064.0,0.36292395]
[1724557380677,0.096009,64065.0,64064.0,0.00212395]
[1724557380906,0.096009,64065.0,64064.0,0.36292395]
[1724557381087,0.096009,64065.0,64064.0,0.00212395]
[1724557381280,0.096009,64065.0,64064.0,0.36292395]
[1724557382685,0.096009,64065.0,64064.0,0.00212395]
[1724557382890,0.096009,64065.0,64064.0,0.36292395]
[1724557385580,0.096009,64065.0,64064.0,0.00212395]
[1724557385986,0.096009,64065.0,64064.0,0.36292395]
[1724557387485,0.174018,64065.0,64064.0,0.36292395]
[1724557388880,0.096009,64065.0,64064.0,0.36292395]
[1724557389187,0.096009,64065.0,64064.0,0.00212395]
[1724557389389,0.174018,64065.0,64064.0,0.00212395]
[1724557394782,0.2041512,64065.0,64064.0,0.00212395]
[1724557397491,0.20415121,64065.0,64064.0,0.00212395]
[1724557397888,0.174018,64065.0,64064.0,0.00212395]
[1724557398991,0.252027,64065.0,64064.0,0.00212395]
[1724557399191,1.2472179,64065.0,64064.0,0.04682712]
[1724557399392,0.078014,64061.0,64060.0,9e-08]
[1724557399696,0.156058,64049.0,64048.0,0.06243933]
[1724557399895,0.156058,64049.0,64040.0,0.45433884]
[1724557399896,0.078032,64046.0,64045.0,0.06243933]
[1724557400147,0.078034,64045.0,64044.0,0.06243933]
[1724557400283,0.078038,64041.0,64040.0,0.42323933]
[1724557400487,0.168038,64041.0,64040.0,0.3608]
[1724557401384,0.078038,64041.0,64040.0,0.3608]
[1724557401692,0.001,64041.0,64040.0,0.53384]
[1724557401901,0.001,64041.0,64040.0,0.59627933]
[1724557402097,0.001,64041.0,64040.0,0.53384]
[1724557403189,0.002,64041.0,64040.0,0.53384]
[1724557403492,1e-08,64046.0,64040.0,0.59627933]
[1724557403698,1e-08,64046.0,64045.0,0.4508]
[1724557404591,0.00100001,64046.0,64045.0,0.4508]
[1724557404795,0.00100001,64046.0,64045.0,0.528834]
[1724557404994,0.00200001,64046.0,64045.0,0.528834]
[1724557405297,0.001,64054.0,64052.0,0.078024]
[1724557405497,0.001,64054.0,64053.0,0.09]
[1724557405888,0.07825616,64055.0,64053.0,0.09]
[1724557406490,0.001,64054.0,64053.0,0.09]
[1724557407202,0.001,64054.0,64053.0,0.168024]
[1724557407397,0.001,64054.0,64053.0,0.170024]
[1724557407796,0.001,64054.0,64053.0,0.530824]
[1724557408094,0.001,64054.0,64053.0,0.528824]
[1724557408298,0.001,64054.0,64053.0,0.530824]
[1724557409498,0.07825616,64055.0,64053.0,0.531824]
[1724557410402,0.07825616,64055.0,64054.0,0.078023]
[1724557411096,0.07825616,64055.0,64054.0,0.438823]
[1724557412708,0.07825616,64055.0,64054.0,0.441823]
[1724557417002,0.07825616,64055.0,64054.0,0.081023]
[1724557417208,0.07825616,64055.0,64054.0,0.441823]
[1724557418810,0.16825616,64055.0,64054.0,0.081023]
[1724557419525,0.07825616,64055.0,64054.0,0.081023]
[1724557421509,0.07825616,64055.0,64054.0,0.003]
[1724557421916,0.15627816,64055.0,64054.0,0.003]
[1724557422913,1.02463816,64055.0,64054.0,0.00086211]
[1724557424103,1.02463816,64055.0,64047.0,0.4508]
[1724557424104,0.07803,64048.0,64047.0,0.4508]
[1724557425313,0.07803,64048.0,64047.0,0.3608]
[1724557425912,0.09,64049.0,64046.0,0.078032]
[1724557425913,0.078031,64047.0,64046.0,0.078032]
[1724557426105,0.078031,64047.0,64046.0,0.438832]
[1724557427515,0.080031,64047.0,64046.0,0.439832]
[1724557428213,0.080031,64047.0,64046.0,0.3618]
[1724557431609,0.080031,64047.0,64046.0,0.439832]
[1724557432617,0.080031,64047.0,64046.0,0.3618]
[1724557432813,0.080031,64047.0,64046.0,0.4518]
[1724557433815,0.080031,64047.0,64046.0,0.529832]
[1724557434009,0.1101719,64047.0,64046.0,0.169032]
[1724557434211,0.1101719,64047.0,64046.0,0.529832]
[1724557434402,0.1882029,64047.0,64046.0,0.439832]
[1724557434607,0.1882029,64047.0,64046.0,0.529832]
[1724557436015,0.18820348,64047.0,64046.0,0.529832]
[1724557436312,0.11017248,64047.0,64046.0,0.529832]
[1724557439022,0.080031,64047.0,64046.0,0.529832]
[1724557440417,0.080031,64047.0,64046.0,0.169032]
[1724557440642,0.080031,64047.0,64046.0,0.529832]
[1724557444218,0.080031,64047.0,64046.0,0.169032]
[1724557444524,0.158062,64047.0,64046.0,0.001]
[1724557445519,0.23581495,64047.0,64046.0,0.001]
[1724557446617,0.15778395,64047.0,64046.0,0.001]
[1724557446818,0.23581495,64047.0,64046.0,0.001]
[1724557447019,0.15778395,64047.0,64046.0,0.001]
[1724557448420,0.23581495,64047.0,64046.0,0.001]
[1724557449016,0.15778395,64047.0,64046.0,0.001]
[1724557449840,0.23581495,64047.0,64046.0,0.001]
[1724557454128,0.15778395,64047.0,64046.0,0.001]
[1724557454334,0.23581495,64047.0,64046.0,0.001]
[1724557454524,0.68661495,64047.0,64046.0,0.001]
[1724557454726,0.530831,64047.0,64046.0,0.001]
[1724557454922,0.170031,64047.0,64046.0,0.001]
[1724557455339,0.248062,64047.0,64046.0,0.001]
[1724557455570,0.078036,64043.0,64042.0,0.50219533]
[1724557455727,0.078036,64043.0,64042.0,0.50127533]
[1724557456926,0.078036,64043.0,64042.0,0.59127533]
[1724557458025,0.156072,64043.0,64042.0,0.42323933]
[1724557458230,0.156072,64043.0,64042.0,0.3608]
[1724557458434,0.157072,64043.0,64042.0,0.3608]
[1724557458728,0.158072,64043.0,64042.0,0.3628]
[1724557460530,0.248072,64043.0,64042.0,0.3628]
[1724557463740,0.248072,64043.0,64042.0,0.42523077]
[1724557464226,0.248072,64043.0,64042.0,0.3628]
[1724557465038,0.248072,64043.0,64042.0,0.002]
[1724557466133,0.248072,64043.0,64042.0,0.0644311]
[1724557466337,0.248072,64043.0,64042.0,0.002]
[1724557466532,0.248072,64043.0,64042.0,0.0644311]
[1724557466938,0.248072,64043.0,64042.0,0.002]
[1724557467440,0.326108,64043.0,64042.0,0.002]
[1724557467640,0.794548,64043.0,64042.0,0.002]
[1724557467944,0.87231151,64043.0,64042.0,0.002]
[1724557468162,0.794548,64043.0,64042.0,0.002]
[1724557468453,1.194548,64043.0,64042.0,0.002]
[1724557468681,0.794548,64043.0,64042.0,0.002]
[1724557468834,0.794548,64043.0,64037.0,0.42323097]
[1724557468835,0.078043,64037.0,64036.0,0.06243097]
[1724557469032,0.078043,64037.0,64034.0,0.06243097]
[1724557469241,0.078051,64031.0,64030.0,0.3608]
[1724557469552,0.06218364,64034.0,64033.0,0.078048]
[1724557469739,0.06218364,64035.0,64034.0,0.078047]
[1724557469942,0.14022864,64036.0,64034.0,0.2304541]
[1724557470245,0.078046,64035.0,64034.0,0.1404541]
[1724557470442,0.078046,64035.0,64034.0,0.168047]
[1724557471645,0.079046,64035.0,64034.0,0.168047]
[1724557472547,0.080046,64035.0,64034.0,0.217547]
[1724557478345,0.080046,64035.0,64034.0,0.2799541]
[1724557480144,0.002,64035.0,64034.0,0.6407541]
[1724557480451,0.002,64035.0,64034.0,0.5507541]
[1724557480651,0.002,64035.0,64034.0,0.6407541]
[1724557481148,0.002,64035.0,64034.0,0.2799541]
[1724557481355,0.002,64035.0,64034.0,0.6407541]
[1724557483851,0.002,64035.0,64034.0,0.578347]
[1724557485952,0.002,64035.0,64034.0,0.217547]
[1724557486154,0.002,64035.0,64034.0,0.578347]
[1724557486550,0.002,64035.0,64034.0,0.217547]
[1724557486756,0.002,64035.0,64034.0,0.578347]
[1724557488341,0.080046,64035.0,64034.0,0.578347]
[1724557488654,0.080046,64035.0,64034.0,0.530847]
[1724557488855,0.080046,64035.0,64034.0,0.440847]
[1724557489589,0.080046,64035.0,64034.0,0.530847]
[1724557494960,0.14022564,64038.0,64034.0,0.440847]
[1724557495361,0.078046,64035.0,64034.0,0.440847]
[1724557496450,0.078046,64035.0,64034.0,0.438847]
[1724557496871,0.078046,64035.0,64034.0,0.3638]
[1724557497360,0.079046,64035.0,64034.0,0.3638]
[1724557497964,0.079046,64035.0,64034.0,0.3648]
[1724557498264,0.157092,64035.0,64034.0,0.3648]
[1724557498461,0.157092,64035.0,64034.0,0.3658]
[1724557498765,0.158092,64035.0,64034.0,0.3658]
[1724557499863,0.22645639,64035.0,64034.0,0.3658]
[1724557500766,0.22645638,64035.0,64034.0,0.3658]
[1724557501168,0.518892,64035.0,64034.0,0.06744606]
[1724557502277,0.440846,64035.0,64034.0,0.06744606]
[1724557502468,0.50302336,64035.0,64034.0,0.173047]
[1724557503161,0.50302336,64035.0,64034.0,0.083047]
[1724557503357,0.440846,64035.0,64034.0,0.083047]
[1724557504770,0.080046,64035.0,64034.0,0.083047]
[1724557505761,0.080046,64035.0,64034.0,0.533847]
[1724557507970,0.080046,64035.0,64034.0,0.443847]
[1724557510969,0.080046,64035.0,64034.0,0.50628694]
[1724557511165,0.080046,64035.0,64034.0,0.14548694]
[1724557511965,0.080046,64035.0,64034.0,0.083047]
[1724557512564,0.080046,64035.0,64034.0,0.14548618]
[1724557512972,0.080046,64035.0,64034.0,0.083047]
[1724557513473,0.080046,64035.0,64034.0,0.14548618]
[1724557513667,0.080046,64035.0,64034.0,0.14548607]
[1724557514171,0.080046,64035.0,64034.0,0.14548606]
[1724557514475,0.080046,64035.0,64034.0,0.083047]
[1724557516464,0.170046,64035.0,64034.0,0.083047]
[1724557517872,0.080046,64035.0,64034.0,0.083047]
[1724557518071,0.170046,64035.0,64034.0,0.083047]
[1724557518267,0.080046,64035.0,64034.0,0.083047]
[1724557518771,0.170046,64035.0,64034.0,0.083047]
[1724557521592,0.170046,64035.0,64034.0,0.443847]
[1724557522168,0.170046,64035.0,64034.0,0.083047]
[1724557522371,0.170046,64035.0,64034.0,0.443847]
[1724557522774,0.080046,64035.0,64034.0,0.443847]
[1724557524784,0.002,64035.0,64034.0,0.443847]
[1724557528178,0.06219578,64036.0,64035.0,0.078046]
[1724557528377,0.06219578,64037.0,64035.0,0.09]
[1724557528577,0.06219578,64038.0,64037.0,0.078043]
[1724557528783,0.078041,64039.0,64038.0,0.078041]
[1724557529077,0.078041,64039.0,64038.0,0.14048631]
[1724557530475,0.080041,64039.0,64038.0,0.14648631]
[1724557530675,0.080041,64039.0,64038.0,0.50728631]
[1724557534879,0.080041,64039.0,64038.0,0.14648631]
[1724557535080,0.080041,64039.0,64038.0,0.50728631]
[1724557535985,0.14221187,64039.0,64038.0,0.50728631]
[1724557537579,0.14221187,64039.0,64038.0,0.444841]
[1724557538884,0.14221187,64039.0,64038.0,0.084041]
[1724557539080,0.14221187,64039.0,64038.0,0.444841]
[1724557542804,0.14221187,64039.0,64038.0,0.084041]
[1724557542992,0.14221187,64039.0,64038.0,0.444841]
[1724557544680,0.14221187,64039.0,64038.0,0.50728631]
[1724557545089,0.14221187,64039.0,64038.0,0.14648631]
[1724557545386,0.14221187,64039.0,64038.0,0.50728631]
[1724557546090,0.01727069,64039.0,64038.0,0.50728631]
[1724557546291,0.09531169,64039.0,64038.0,0.50728631]
[1724557546491,0.01727069,64039.0,64038.0,0.50728631]
[1724557547490,0.18531169,64039.0,64038.0,0.50728631]
[1724557547690,0.168041,64039.0,64038.0,0.50728631]
[1724557550791,0.078041,64039.0,64038.0,0.50728631]
[1724557551594,0.078041,64039.0,64038.0,0.14648631]
[1724557553595,0.078041,64039.0,64038.0,0.084041]
[1724557555786,0.078041,64039.0,64038.0,0.444841]
[1724557561902,0.07797888,64042.0,64041.0,0.078038]
[1724557562105,0.00023416,64042.0,64041.0,0.168038]
[1724557562703,0.00023416,64042.0,64041.0,0.078038]
[1724557563093,0.07827116,64042.0,64041.0,0.078038]
[1724557563288,0.07827116,64042.0,64041.0,0.1424926]
[1724557564202,0.07827116,64042.0,64041.0,0.1464926]
[1724557564800,0.00023416,64042.0,64041.0,0.2364926]
[1724557565190,0.00023416,64042.0,64041.0,0.23649295]
[1724557570694,0.00023416,64042.0,64041.0,0.174038]
[1724557571105,0.00023416,64042.0,64041.0,0.23649295]
[1724557580416,0.00023416,64042.0,64041.0,0.31453095]
[1724557581610,0.00023416,64042.0,64041.0,0.330114]
[1724557582808,0.00023416,64042.0,64041.0,0.252076]
[1724557584517,0.00023416,64042.0,64041.0,0.174038]
[1724557586126,0.00023416,64042.0,64041.0,0.23645547]
[1724557587411,0.00023416,64042.0,64041.0,0.174038]
[1724557588915,0.00023416,64042.0,64041.0,0.23645547]
[1724557590314,0.00023416,64042.0,64041.0,0.174038]
[1724557592415,0.07827116,64042.0,64041.0,0.174038]
[1724557592616,0.00023416,64042.0,64041.0,0.174038]
[1724557594114,0.00023416,64042.0,64041.0,0.084038]
[1724557594314,0.00023416,64042.0,64041.0,0.174038]
[1724557595858,0.00023416,64042.0,64041.0,0.534838]
[1724557597513,0.00023416,64042.0,64041.0,0.174038]
[1724557597709,0.00023416,64042.0,64041.0,0.534838]
[1724557599817,0.00023416,64042.0,64041.0,0.63239633]
[1724557601026,0.00023416,64042.0,64041.0,0.55435833]
[1724557602424,0.00023416,64042.0,64041.0,0.91515833]
[1724557602731,0.00023416,64042.0,64041.0,0.91515712]
[1724557608030,0.00023416,64042.0,64041.0,0.895638]
[1724557609934,0.00023416,64042.0,64041.0,0.174038]
[1724557610232,0.00023416,64042.0,64041.0,0.895638]
[1724557611721,0.00023416,64042.0,64041.0,0.174038]
[1724557611925,0.00023416,64042.0,64041.0,0.895638]
[1724557613439,0.06245344,64042.0,64041.0,0.895638]
[1724557613625,0.00023416,64042.0,64041.0,0.895638]
[1724557614025,0.06245344,64042.0,64041.0,0.895638]
[1724557614228,0.06245344,64042.0,64041.0,0.174038]
[1724557614491,0.06245344,64042.0,64041.0,0.895638]
[1724557616437,0.00023416,64042.0,64041.0,0.895638]
[1724557616636,0.00023416,64042.0,64041.0,0.174038]
[1724557616840,0.00023416,64042.0,64041.0,0.895638]
[1724557617936,0.14025528,64043.0,64042.0,0.078037]
[1724557618245,0.078037,64043.0,64042.0,0.078037]
[1724557618433,0.078037,64043.0,64042.0,0.168037]
[1724557619035,0.156074,64042.0,64041.0,0.36764]
[1724557619338,0.204574,64042.0,64041.0,0.3628]
[1724557619640,0.204574,64042.0,64041.0,0.3608]
[1724557620140,0.204574,64042.0,64041.0,0.3628]
[1724557620642,0.204574,64042.0,64041.0,0.3668]
[1724557621302,0.204574,64042.0,64041.0,0.006]
[1724557624140,0.204574,64042.0,64041.0,0.06844208]
[1724557625040,0.204574,64042.0,64041.0,0.006]
[1724557626438,0.15608,64040.0,64039.0,0.06244208]
[1724557626645,0.50074,64042.0,64037.0,0.06243357]
[1724557626833,0.15608,64040.0,64039.0,0.04682745]
[1724557627193,0.234123,64039.0,64038.0,0.04682745]
[1724557627539,0.156082,64039.0,64037.0,0.04682745]
[1724557627743,0.09,64037.0,64036.0,0.00023416]
[1724557628744,0.324129,64037.0,64036.0,0.00023416]
[1724557629445,0.325129,64037.0,64036.0,0.00123416]
[1724557630173,0.326129,64037.0,64036.0,0.00123416]
[1724557630543,0.326129,64037.0,64036.0,0.04801542]
[1724557632037,0.236129,64037.0,64036.0,0.04801542]
[1724557632253,0.326129,64037.0,64036.0,0.04801542]
[1724557633583,0.248086,64037.0,64036.0,0.00123416]
[1724557640558,1.116566,64037.0,64036.0,0.00123416]
[1724557640946,1.14000601,64037.0,64036.0,0.00123416]
[1724557641645,0.74000601,64037.0,64036.0,0.00123416]
[1724557642557,0.080043,64037.0,64036.0,0.00123416]
[1724557644550,0.080043,64037.0,64036.0,0.04801542]
[1724557645859,0.170043,64037.0,64036.0,0.00123416]
[1724557646541,0.170043,64037.0,64036.0,0.04801542]
[1724557649067,0.080043,64037.0,64036.0,0.12605942]
[1724557650163,0.080043,64037.0,64036.0,0.48685942]
[1724557652060,0.11018943,64037.0,64036.0,0.44007816]
[1724557652261,0.1484072,64037.0,64036.0,0.44007816]
[1724557652558,0.10878741,64045.0,64038.0,0.156084]
[1724557652764,0.1634427,64056.0,64044.0,0.4508]
[1724557652765,0.12440885,64051.0,64044.0,0.4508]
[1724557653003,0.13893982,64048.0,64044.0,0.3608]
[1724557653181,0.09,64055.0,64048.0,0.07803]
[1724557653182,0.10903117,64049.0,64048.0,0.07803]
[1724557653363,0.03037642,64049.0,64048.0,0.07803]
[1724557654869,0.03037642,64049.0,64048.0,0.16803]
[1724557655367,0.03337642,64049.0,64048.0,0.16803]
[1724557655770,0.03337627,64049.0,64048.0,0.16803]
[1724557655972,0.00723416,64049.0,64048.0,0.16803]
[1724557656267,0.00723416,64049.0,64048.0,0.52883]
[1724557656572,0.08490566,64049.0,64048.0,0.52883]
[1724557661477,0.00723416,64049.0,64048.0,0.52883]
[1724557663079,0.00723416,64049.0,64048.0,0.16803]
[1724557663276,0.08490566,64049.0,64048.0,0.52883]
[1724557664581,0.00723416,64049.0,64048.0,0.52883]
[1724557667392,0.00723416,64049.0,64048.0,0.65364126]
[1724557667572,0.07802,64057.0,64051.0,0.078026]
[1724557667779,0.07802,64057.0,64056.0,0.4508]
[1724557667978,0.07802,64057.0,64056.0,0.52882]
[1724557668783,0.08402,64057.0,64056.0,0.52882]
[1724557668988,0.09702,64057.0,64056.0,0.43882]
[1724557669177,0.09702,64057.0,64056.0,0.52882]
[1724557670980,0.10202,64057.0,64056.0,0.52982]
[1724557671781,0.10202,64057.0,64056.0,0.43982]
[1724557671979,0.10202,64057.0,64056.0,0.52982]
[1724557672184,0.10202,64057.0,64056.0,0.43982]
[1724557674584,0.19202,64057.0,64056.0,0.43982]
[1724557675681,0.10202,64057.0,64056.0,0.43982]
[1724557677984,0.10202,64057.0,64056.0,0.07902]
[1724557678278,0.10202,64057.0,64056.0,0.52982]
[1724557680083,0.024,64057.0,64056.0,0.52982]
[1724557682187,0.024,64057.0,64056.0,0.89062]
[1724557683595,0.024,64057.0,64056.0,1.43696]
[1724557683890,0.024,64057.0,64056.0,1.48374126]
[1724557684094,0.08612199,64057.0,64056.0,1.43696]
[1724557684494,0.08612199,64057.0,64056.0,0.89062]
[1724557687691,0.024,64057.0,64056.0,0.89062]
[1724557688987,0.00023416,64063.0,64062.0,0.078013]
[1724557689193,0.00023416,64063.0,64062.0,0.528813]
[1724557690597,0.01423416,64063.0,64062.0,0.528813]
[1724557691199,0.05436859,64063.0,64062.0,0.529813]
[1724557692496,0.02423416,64063.0,64062.0,0.529813]
[1724557692690,0.02423416,64063.0,64062.0,0.607826]
[1724557693792,0.02423416,64063.0,64062.0,0.247026]
[1724557694002,0.02423416,64063.0,64062.0,0.607826]
[1724557698901,0.02423416,64063.0,64062.0,0.656426]
[1724557699602,0.06214493,64070.0,64069.0,0.078004]
[1724557699804,0.078,64073.0,64069.0,0.078004]
[1724557699805,0.06214493,64071.0,64070.0,0.078003]
[1724557700106,0.06214493,64071.0,64070.0,0.168003]
[1724557700324,0.06214493,64072.0,64071.0,0.078002]
[1724557700906,0.02312926,64072.0,64071.0,0.078002]
[1724557701304,0.078,64073.0,64072.0,0.078001]
[1724557701607,0.05487075,64073.0,64072.0,0.078001]
[1724557702525,0.00023416,64078.0,64077.0,0.077995]
[1724557702697,0.00023416,64078.0,64077.0,0.528795]
[1724557703798,0.07822716,64078.0,64077.0,0.528795]
[1724557704307,0.07822716,64078.0,64077.0,0.529795]
[1724557704701,0.16822716,64078.0,64077.0,0.3618]
[1724557704918,0.077999,64074.0,64072.0,0.001]
[1724557705194,0.077995,64077.0,64069.0,0.3608]
[1724557705195,0.156006,64070.0,64069.0,0.3608]
[1724557705336,0.078008,64066.0,64063.0,0.43881]
[1724557705517,0.078008,64066.0,64060.0,0.04673086]
[1724557705518,0.078008,64066.0,64060.0,0.078015]
[1724557705713,0.624296,64066.0,64057.0,0.04673086]
[1724557705914,0.592888,64066.0,64057.0,0.12474886]
[1724557706120,0.670896,64066.0,64058.0,0.078018]
[1724557706323,0.592888,64066.0,64058.0,0.078018]
[1724557706521,0.592888,64066.0,64054.0,0.438822]
[1724557706522,0.760896,64066.0,64054.0,0.438822]
[1724557706717,0.07802,64057.0,64054.0,0.438822]
[1724557706922,0.09,64057.0,64054.0,0.438822]
[1724557707128,0.0962,64056.0,64054.0,0.438822]
[1724557707518,0.0455,64055.0,64054.0,0.438822]
[1724557707716,0.0455,64055.0,64054.0,0.3608]
[1724557707717,0.123521,64055.0,64054.0,0.3608]
[1724557707918,0.0455,64055.0,64050.0,0.09]
[1724557708132,0.07756821,64054.0,64050.0,0.168027]
[1724557708318,0.078026,64051.0,64050.0,0.09]
[1724557708614,0.078029,64049.0,64048.0,0.36103416]
[1724557709919,0.079029,64049.0,64048.0,0.36103416]
[1724557711522,0.079029,64049.0,64048.0,0.43906516]
[1724557713632,0.001,64049.0,64048.0,0.43906516]
[1724557715124,0.001,64049.0,64048.0,0.51709616]
[1724557715331,0.00023416,64061.0,64060.0,0.078016]
[1724557715521,0.00023416,64061.0,64060.0,0.528816]
[1724557716640,0.00023416,64061.0,64060.0,0.529816]
[1724557716819,0.00023416,64061.0,64060.0,0.968632]
[1724557717231,0.07756336,64072.0,64071.0,0.078003]
[1724557717526,0.077998,64075.0,64074.0,0.077999]
[1724557717726,0.20124551,64075.0,64074.0,0.167999]
[1724557718028,0.03013111,64075.0,64074.0,0.167999]
[1724557718427,0.20788751,64075.0,64074.0,0.167999]
[1724557718622,0.06832946,64075.0,64074.0,0.167999]
[1724557718822,0.06832946,64075.0,64074.0,0.168999]
[1724557719334,0.0495,64076.0,64075.0,0.077998]
[1724557719335,0.08769835,64076.0,64075.0,0.077998]
[1724557719636,0.03012612,64076.0,64075.0,0.077998]
[1724557720583,0.07773116,64081.0,64075.0,0.077998]
[1724557720830,0.00023416,64081.0,64080.0,0.438792]
[1724557722425,0.00023416,64081.0,64080.0,0.439792]
[1724557722722,0.00023416,64081.0,64080.0,0.517784]
[1724557722920,0.077975,64094.0,64080.0,0.907952]
[1724557722921,0.077497,64092.0,64080.0,0.907952]
[1724557723237,0.077497,64093.0,64091.0,0.3608]
[1724557723332,0.126175,64094.0,64091.0,0.3608]
[1724557723333,0.203672,64094.0,64091.0,0.3608]
[1724557723541,0.10849575,64101.0,64093.0,0.22]
[1724557723835,0.10849575,64101.0,64099.0,0.3608]
[1724557723836,0.03011851,64100.0,64099.0,0.3608]
[1724557724040,0.10808551,64100.0,64099.0,0.3608]
[1724557724938,0.10808551,64100.0,64099.0,0.438768]
[1724557725127,0.077967,64100.0,64099.0,0.438768]
[1724557725328,0.17076948,64100.0,64099.0,0.438768]
[1724557725522,0.17076948,64100.0,64099.0,0.439768]
[1724557725935,0.09280248,64100.0,64099.0,0.439768]
[1724557726423,0.09280248,64101.0,64099.0,0.440768]
[1724557726631,0.00023416,64103.0,64099.0,0.440768]
[1724557726632,0.03011712,64100.0,64099.0,0.440768]
[1724557727423,0.03011712,64100.0,64099.0,0.439768]
[1724557727628,0.03011712,64100.0,64099.0,0.440768]
[1724557728334,0.10816543,64100.0,64099.0,0.440768]
[1724557728532,0.03011692,64100.0,64099.0,0.440768]
[1724557730541,0.00023416,64103.0,64101.0,0.077965]
[1724557731844,0.00023416,64103.0,64102.0,0.077965]
[1724557734044,0.00023416,64103.0,64102.0,0.079965]
[1724557734237,0.07734745,64103.0,64102.0,0.079965]
[1724557734834,0.00023416,64103.0,64102.0,0.079965]
[1724557737046,0.00023416,64103.0,64102.0,0.077965]
[1724557739653,0.00023416,64103.0,64101.0,0.3608]
[1724557739842,0.077965,64102.0,64101.0,0.3608]
[1724557740145,0.077965,64102.0,64093.0,0.3608]
[1724557740146,0.7856,64102.0,64093.0,0.3608]
[1724557740444,0.7856,64102.0,64087.0,0.077982]
[1724557740445,0.077977,64092.0,64087.0,0.077982]
[1724557740749,0.077977,64092.0,64086.0,0.3608]
[1724557741244,0.546057,64092.0,64086.0,0.3608]
[1724557741451,0.546057,64092.0,64087.0,0.077982]
[1724557741642,0.946057,64092.0,64087.0,0.077982]
[1724557742258,1.462811,64092.0,64079.0,0.3608]
[1724557742641,1.462811,64092.0,64091.0,0.00923416]
[1724557743344,1.462811,64092.0,64091.0,0.00023416]
[1724557743549,1.48625101,64092.0,64091.0,0.00123416]
[1724557743749,1.48625101,64092.0,64091.0,0.00223416]
[1724557743950,0.077992,64080.0,64079.0,0.3608]
[1724557744160,0.077999,64074.0,64073.0,0.3608]
[1724557745452,0.077999,64074.0,64073.0,0.3648]
[1724557747078,0.077999,64074.0,64073.0,0.3698]
[1724557747841,0.077999,64074.0,64073.0,0.4478]
[1724557748050,0.00023416,64080.0,64073.0,0.3698]
[1724557748246,0.07822616,64080.0,64078.0,0.077993]
[1724557748748,0.07822616,64080.0,64073.0,0.3698]
[1724557748749,0.00023416,64080.0,64079.0,0.077993]
[1724557749157,0.00023416,64080.0,64079.0,0.438793]
[1724557750461,0.00123416,64080.0,64079.0,0.438793]
[1724557750750,0.07922616,64080.0,64079.0,0.3608]
[1724557751351,0.07922616,64080.0,64066.0,0.3608]
[1724557751352,0.07922616,64080.0,64073.0,0.3608]
[1724557751656,0.077999,64074.0,64073.0,0.3608]
[1724557752649,0.077999,64074.0,64073.0,0.3658]
[1724557753348,0.077999,64074.0,64073.0,0.3698]
[1724557754349,0.077999,64074.0,64073.0,0.3658]
[1724557754551,0.077999,64074.0,64073.0,0.3698]
[1724557754961,0.155998,64074.0,64073.0,0.3698]
[1724557755659,0.077999,64074.0,64073.0,0.3698]
[1724557756420,0.077999,64074.0,64073.0,0.009]
[1724557756680,0.077999,64074.0,64073.0,0.3698]
[1724557756753,0.077999,64074.0,64073.0,0.4478]
[1724557757851,0.3608,64079.0,64077.0,0.077995]
[1724557757852,0.077994,64078.0,64077.0,0.077995]
[1724557758258,0.00023416,64080.0,64079.0,0.077993]
[1724557758460,0.00023416,64080.0,64079.0,0.438793]
[1724557759361,0.3608,64091.0,64090.0,0.07798]
[1724557760053,0.077976,64094.0,64086.0,0.3608]
[1724557760257,0.077973,64096.0,64086.0,0.3608]
[1724557760461,0.00023416,64096.0,64095.0,0.077973]
[1724557761851,0.03035373,64096.0,64095.0,0.077973]
[1724557762449,0.03035372,64096.0,64095.0,0.077973]
[1724557762860,0.00023416,64096.0,64095.0,0.077973]
[1724557763061,0.00123416,64096.0,64095.0,0.078973]
[1724557763558,0.00023416,64096.0,64095.0,0.077973]
[1724557763852,0.00123416,64096.0,64095.0,0.078973]
[1724557764659,0.00023416,64096.0,64095.0,0.077973]